fUSD/lending_fUSD_20250530
["ID","MTS","AMOUNT","RATE_DAILY","PERIOD"]
[363207629,1748623862819,-500.0,0.00021973,2]
[363207630,1748623862831,-547.52718811,0.00021973,2]
[363207631,1748623862843,-500.55802474,0.00021973,2]
[363207632,1748623862853,-500.65590479,0.00021973,2]
[363207633,1748623862864,-500.0,0.00021973,2]
[363207634,1748623862875,-500.0,0.00021973,2]
[363207635,1748623862885,-500.0,0.00021973,2]
[363207636,1748623862896,-501.98633899,0.00021973,2]
[363207637,1748623862906,-503.06153334,0.00021973,2]
[363207638,1748623862916,-500.0,0.00021973,2]
[363207639,1748623862926,-500.0,0.00021973,2]
[363207640,1748623862941,-193.22,0.00021993,2]
[363207641,1748623862952,-151.0,0.00022,7]
[363207642,1748623862962,-8995.82,0.00022,7]
[363207643,1748623862972,-290362.61,0.00022,7]
[363207644,1748623862984,-166.0,0.00022,2]
[363207645,1748623862994,-213.0,0.00022,2]
[363207646,1748623863004,-4000.0,0.00022,4]
[363207647,1748623863014,-1000.0,0.00022001,2]
[363207648,1748623863024,-1000.0,0.00022001,7]
[363207649,1748623863035,-1000.0,0.00022001,7]
[363207650,1748623863047,-1200.0,0.00022004,2]
[363207651,1748623863058,-1200.0,0.00022004,2]
[363207652,1748623863069,-1200.0,0.00022004,2]
[363207653,1748623863080,-1200.0,0.00022004,2]
[363207654,1748623863091,-1200.0,0.00022004,2]
[363207655,1748623863102,-1200.0,0.00022004,2]
[363207656,1748623863113,-1200.0,0.00022004,2]
[363207657,1748623863123,-1200.0,0.00022004,2]
[363207658,1748623863133,-1200.0,0.00022004,7]
[363207659,1748623863143,-1200.0,0.00022004,7]
[363207660,1748623863154,-1200.0,0.00022004,7]
[363207661,1748623863164,-1200.0,0.00022004,7]
[363207662,1748623863175,-1200.0,0.00022004,7]
[363207663,1748623863189,-1200.0,0.00022004,7]
[363207664,1748623863199,-1200.0,0.00022004,7]
[363207665,1748623863208,-1200.0,0.00022004,7]
[363207666,1748623863219,-1200.0,0.00022004,7]
[363207667,1748623863229,-4336.98375383,0.00022072,6]
[363207668,1748623863240,-163.75530595,0.00022091,2]
[363207669,1748623863250,-1000.0,0.00022099,2]
[363207670,1748623863261,-8756.07663446,0.000221,2]
[363207671,1748623863272,-1034.9035726,0.00022163,2]
[363207672,1748623863283,-376.3724,0.0002217,2]
[363207673,1748623863293,-500.51754316,0.00022173,2]
[363207674,1748623863304,-500.0,0.00022173,2]
[363207675,1748623863315,-500.0,0.00022173,2]
[363207676,1748623863326,-500.0,0.00022173,2]
[363207677,1748623863337,-501.3177613,0.00022173,2]
[363207678,1748623863347,-500.0,0.00022173,2]
[363207679,1748623863358,-159.57199504,0.00022173,2]
[363207680,1748623863368,-160.2711382,0.00022173,2]
[363207681,1748623863378,-151.0,0.00022178,2]
[363207682,1748623863389,-151.0,0.00022178,2]
[363207683,1748623863400,-1115.157653,0.00022178,2]
[363207684,1748623863410,-151.0,0.00022178,2]
[363207685,1748623863420,-668.65185757,0.00022178,2]
[363207686,1748623863430,-265.95231557,0.00022178,2]
[363207687,1748623863445,-207.4,0.00022178,2]
[363207688,1748623863459,-420.0,0.0002219,2]
[363207689,1748623863470,-151.338691,0.0002219,7]
[363207690,1748623863483,-425.04476514,0.0002219,2]
[363207691,1748623863495,-420.0,0.0002219,2]
[363207692,1748623863507,-423.07083082,0.0002219,2]
[363207693,1748623863789,-420.0,0.0002219,2]
[363207694,1748623863800,-423.8394172,0.0002219,2]
[363207695,1748623863810,-420.0,0.0002219,2]
[363207696,1748623863821,-160.0,0.0002219,2]
[363207697,1748623863832,-151.0,0.0002219,7]
[363207698,1748623863843,-420.0,0.0002219,2]
[363207699,1748623863853,-432.5747634,0.0002219,2]
[363207700,1748623863863,-428.08271293,0.0002219,2]
[363207701,1748623863874,-420.0,0.0002219,2]
[363207702,1748623863885,-151.0,0.0002219,7]
[363207703,1748623863896,-188.595587,0.0002219,7]
[363207704,1748623863906,-188.595587,0.0002219,7]
[363207705,1748623863916,-420.0,0.0002219,2]
[363207706,1748623863927,-424.00636867,0.0002219,2]
[363207707,1748623863941,-421.01684748,0.0002219,2]
[363207708,1748623863952,-420.0,0.0002219,2]
[363207709,1748623863962,-420.0,0.0002219,2]
[363207710,1748623863973,-420.0,0.0002219,2]
[363207711,1748623863983,-420.84616822,0.0002219,2]
[363207712,1748623863993,-151.0,0.0002219,7]
[363207713,1748623864003,-420.0,0.0002219,2]
[363207714,1748623864014,-561.47,0.0002219,2]
[363207715,1748623864025,-420.0,0.0002219,2]
[363207716,1748623864035,-1170.42,0.0002219,2]
[363207717,1748623864045,-605.27,0.0002219,2]
[363207718,1748623864056,-420.0,0.0002219,2]
[363207719,1748623864065,-807.7,0.0002219,2]
[363207720,1748623864076,-420.0,0.0002219,2]
[363207721,1748623864086,-420.0,0.0002219,2]
[363207722,1748623864096,-420.0,0.0002219,2]
[363207723,1748623864106,-1877.86,0.0002219,2]
[363207724,1748623864116,-420.0,0.0002219,2]
[363207725,1748623864126,-420.0,0.0002219,2]
[363207726,1748623864135,-420.0,0.0002219,2]
[363207727,1748623864146,-420.0,0.0002219,2]
[363207728,1748623864157,-420.0,0.0002219,2]
[363207729,1748623864167,-420.0,0.0002219,2]
[363207730,1748623864177,-420.0,0.0002219,2]
[363207731,1748623864191,-420.0,0.0002219,2]
[363207732,1748623864201,-1224.66,0.0002219,2]
[363207733,1748623864212,-420.0,0.0002219,2]
[363207734,1748623864223,-843.44,0.0002219,2]
[363207735,1748623864232,-420.0,0.0002219,2]
[363207736,1748623864242,-506.01,0.0002219,2]
[363207737,1748623864252,-651.37,0.0002219,2]
[363207738,1748623864262,-1123.34,0.0002219,2]
[363207739,1748623864273,-420.0,0.0002219,2]
[363207740,1748623864283,-525.31,0.0002219,2]
[363207741,1748623864292,-975.81,0.0002219,2]
[363207742,1748623864302,-1019.6,0.0002219,2]
[363207743,1748623864312,-420.0,0.0002219,2]
[363207744,1748623864322,-420.0,0.0002219,2]
[363207745,1748623864332,-876.4,0.0002219,2]
[363207746,1748623864342,-1441.66,0.0002219,2]
[363207747,1748623864352,-609.59,0.0002219,2]
[363207748,1748623864361,-1104.0,0.0002219,2]
[363207749,1748623864371,-420.0,0.0002219,2]
[363207750,1748623864381,-420.0,0.0002219,2]
[363207751,1748623864391,-707.81,0.0002219,2]
[363207752,1748623864401,-420.0,0.0002219,2]
[363207753,1748623864410,-1274.17,0.0002219,2]
[363207754,1748623864420,-1408.35,0.0002219,2]
[363207755,1748623864430,-1181.43,0.0002219,2]
[363207756,1748623864444,-1221.86,0.0002219,2]
[363207757,1748623864454,-1771.19,0.0002219,2]
[363207758,1748623864465,-1131.14,0.0002219,2]
[363207759,1748623864474,-1115.84,0.0002219,2]
[363207760,1748623864483,-420.0,0.0002219,2]
[363207761,1748623864493,-705.94,0.0002219,2]
[363207762,1748623864503,-1995.28,0.0002219,2]
[363207763,1748623864513,-1227.14,0.0002219,2]
[363207764,1748623864522,-497.09,0.0002219,2]
[363207765,1748623864536,-420.0,0.0002219,2]
[363207766,1748623864546,-579.14,0.0002219,2]
[363207767,1748623864556,-420.0,0.0002219,2]
[363207768,1748623864566,-733.81,0.0002219,2]
[363207769,1748623864578,-624.96,0.0002219,2]
[363207770,1748623864588,-1932.62,0.0002219,2]
[363207771,1748623864598,-1023.46,0.0002219,2]
[363207772,1748623864608,-1680.49,0.0002219,2]
[363207773,1748623864620,-420.0,0.0002219,2]
[363207774,1748623864630,-1357.41,0.0002219,2]
[363207775,1748623864640,-533.37,0.0002219,2]
[363207776,1748623864650,-420.0,0.0002219,2]
[363207777,1748623864660,-420.0,0.0002219,2]
[363207778,1748623864670,-1316.43,0.0002219,2]
[363207779,1748623864681,-420.0,0.0002219,2]
[363207780,1748623864694,-1018.4,0.0002219,2]
[363207781,1748623864704,-905.57,0.0002219,2]
[363207782,1748623864714,-420.0,0.0002219,2]
[363207783,1748623864723,-420.0,0.0002219,2]
[363207784,1748623864733,-420.0,0.0002219,2]
[363207785,1748623864742,-422.25772807,0.0002219,2]
[363207786,1748623864753,-300.0,0.0002219,2]
[363207787,1748623864763,-300.0,0.0002219,2]
[363207788,1748623864773,-300.0,0.0002219,2]
[363207789,1748623864783,-300.0,0.0002219,2]
[363207790,1748623864792,-300.0,0.0002219,2]
[363207791,1748623864802,-300.0,0.0002219,2]
[363207792,1748623864812,-300.0,0.0002219,2]
[363207793,1748623864821,-300.0,0.0002219,2]
[363207794,1748623864830,-151.0,0.00022191,7]
[363207795,1748623864840,-151.0,0.00022191,7]
[363207796,1748623864850,-153.573586,0.00022191,7]
[363207797,1748623864859,-151.0,0.00022191,7]
[363207798,1748623864868,-426.5,0.00022191,2]
[363207799,1748623864878,-420.0,0.00022191,2]
[363207800,1748623864888,-151.0,0.00022191,7]
[363207801,1748623864897,-151.0,0.00022191,7]
[363207802,1748623864907,-420.0,0.00022191,2]
[363207803,1748623864916,-470.65412982,0.00022191,2]
[363207804,1748623864926,-420.0,0.00022191,2]
[363207805,1748623864939,-420.0,0.00022191,2]
[363207806,1748623864949,-400.0,0.00022191,2]
[363207807,1748623864959,-420.0,0.00022191,2]
[363207808,1748623864969,-420.0,0.00022191,2]
[363207809,1748623864979,-432.18671893,0.00022191,2]
[363207810,1748623864989,-420.0,0.00022191,2]
[363207811,1748623864998,-535.71,0.00022191,2]
[363207812,1748623865008,-420.0,0.00022191,2]
[363207813,1748623865017,-420.0,0.00022191,2]
[363207814,1748623865029,-480.21,0.00022191,2]
[363207815,1748623865038,-952.02,0.00022191,2]
[363207816,1748623865048,-420.0,0.00022191,2]
[363207817,1748623865057,-420.0,0.00022191,2]
[363207818,1748623865066,-420.0,0.00022191,2]
[363207819,1748623865076,-420.0,0.00022191,2]
[363207820,1748623865086,-458.52,0.00022191,2]
[363207821,1748623865096,-420.00000001,0.00022191,2]
[363207822,1748623865106,-170.51417373,0.00022191,2]
[363207823,1748623865116,-420.0,0.00022191,2]
[363207824,1748623865126,-610.95,0.00022191,2]
[363207825,1748623865135,-420.0,0.00022191,2]
[363207826,1748623865145,-420.0,0.00022191,2]
[363207827,1748623865155,-420.0,0.00022191,2]
[363207828,1748623865165,-420.0,0.00022191,2]
[363207829,1748623865175,-420.0,0.00022191,2]
[363207830,1748623865189,-420.0,0.00022191,2]
[363207831,1748623865199,-425.30534291,0.00022191,2]
[363207832,1748623865208,-420.0,0.00022191,2]
[363207833,1748623865219,-1000.0,0.00022191,2]
[363207834,1748623865230,-420.0,0.00022191,2]
[363207835,1748623865240,-530.64,0.00022191,2]
[363207836,1748623865251,-420.0,0.00022191,2]
[363207837,1748623865261,-420.0,0.00022191,2]
[363207838,1748623865272,-420.0,0.00022191,2]
[363207839,1748623865282,-420.0,0.00022191,2]
[363207840,1748623865292,-423.93726375,0.00022191,2]
[363207841,1748623865301,-429.89878661,0.00022191,2]
[363207842,1748623865311,-420.0,0.00022191,2]
[363207843,1748623865321,-420.0,0.00022191,2]
[363207844,1748623865331,-420.0,0.00022191,2]
[363207845,1748623865341,-420.0,0.00022191,2]
[363207846,1748623865350,-150.0,0.00022191,2]
[363207847,1748623865360,-420.0,0.00022191,2]
[363207848,1748623865369,-425.87540951,0.00022191,2]
[363207849,1748623865379,-1175.45,0.00022191,2]
[363207850,1748623865388,-420.0,0.00022191,2]
[363207851,1748623865398,-478.61,0.00022191,2]
[363207852,1748623865407,-196.06,0.00022191,2]
[363207853,1748623865417,-420.0,0.00022191,2]
[363207854,1748623865427,-283.20330913,0.00022191,2]
[363207855,1748623865441,-688.56,0.00022191,2]
[363207856,1748623865450,-451.33219594,0.00022191,2]
[363207857,1748623865459,-420.0,0.00022191,2]
[363207858,1748623865469,-420.0,0.00022191,2]
[363207859,1748623865479,-420.0,0.00022191,2]
[363207860,1748623865488,-420.0,0.00022191,2]
[363207861,1748623865498,-420.0,0.00022191,2]
[363207862,1748623865507,-160.0,0.00022191,2]
[363207863,1748623865517,-420.0,0.00022191,2]
[363207864,1748623865527,-420.0,0.00022191,2]
[363207865,1748623865539,-160.0,0.00022191,2]
[363207866,1748623865550,-420.0,0.00022191,2]
[363207867,1748623865559,-420.0,0.00022191,2]
[363207868,1748623865569,-280.66627612,0.00022191,2]
[363207869,1748623865579,-420.0,0.00022191,2]
[363207870,1748623865589,-420.0,0.00022191,2]
[363207871,1748623865599,-612.25,0.00022191,2]
[363207872,1748623865608,-420.0,0.00022191,2]
[363207873,1748623865619,-420.0,0.00022191,2]
[363207874,1748623865628,-420.0,0.00022191,2]
[363207875,1748623865638,-423.83649276,0.00022191,2]
[363207876,1748623865647,-542.39,0.00022191,2]
[363207877,1748623865657,-649.81,0.00022191,2]
[363207878,1748623865666,-420.0,0.00022191,2]
[363207879,1748623865676,-420.0,0.00022191,2]
[363207880,1748623865689,-420.0,0.00022191,2]
[363207881,1748623865698,-420.0,0.00022191,2]
[363207882,1748623865709,-500.0,0.00022191,2]
[363207883,1748623865718,-420.0,0.00022191,2]
[363207884,1748623865727,-420.0,0.00022191,2]
[363207885,1748623865737,-312.28191678,0.00022191,2]
[363207886,1748623865747,-506.81313467,0.00022191,2]
[363207887,1748623865755,-459.23,0.00022191,2]
[363207888,1748623865766,-420.0,0.00022191,2]
[363207889,1748623865776,-500.0,0.00022191,2]
[363207890,1748623865785,-631.94,0.00022191,2]
[363207891,1748623865795,-420.0,0.00022191,2]
[363207892,1748623865805,-420.0,0.00022191,2]
[363207893,1748623865814,-493.86601578,0.00022191,2]
[363207894,1748623865824,-420.0,0.00022191,2]
[363207895,1748623865833,-500.0,0.00022191,2]
[363207896,1748623865843,-420.0,0.00022191,2]
[363207897,1748623865853,-420.0,0.00022191,2]
[363207898,1748623865863,-506.84121239,0.00022191,2]
[363207899,1748623865873,-420.0,0.00022191,2]
[363207900,1748623865883,-420.0,0.00022191,2]
[363207901,1748623865893,-420.0,0.00022191,2]
[363207902,1748623865903,-574.53,0.00022191,2]
[363207903,1748623865913,-420.0,0.00022191,2]
[363207904,1748623865924,-500.0,0.00022191,2]
[363207905,1748623865940,-420.0,0.00022191,2]
[363207906,1748623865951,-275.77848789,0.00022191,2]
[363207907,1748623865962,-452.89,0.00022191,2]
[363207908,1748623865972,-420.0,0.00022191,2]
[363207909,1748623865982,-420.0,0.00022191,2]
[363207910,1748623865992,-673.0,0.00022191,2]
[363207911,1748623866001,-420.0,0.00022191,2]
[363207912,1748623866011,-897.65,0.00022191,2]
[363207913,1748623866021,-1109.49,0.00022191,2]
[363207914,1748623866031,-500.0,0.00022191,2]
[363207915,1748623866042,-420.0,0.00022191,2]
[363207916,1748623866051,-420.0,0.00022191,2]
[363207917,1748623866061,-425.29794524,0.00022191,2]
[363207918,1748623866071,-420.0,0.00022191,2]
[363207919,1748623866080,-478.29,0.00022191,2]
[363207920,1748623866090,-420.0,0.00022191,2]
[363207921,1748623866099,-420.0,0.00022191,2]
[363207922,1748623866109,-420.0,0.00022191,2]
[363207923,1748623866119,-420.0,0.00022191,2]
[363207924,1748623866129,-420.0,0.00022191,2]
[363207925,1748623866139,-1117.4,0.00022191,2]
[363207926,1748623866148,-735.72,0.00022191,2]
[363207927,1748623866158,-420.0,0.00022191,2]
[363207928,1748623866167,-420.0,0.00022191,2]
[363207929,1748623866250,-560.0,0.00022191,2]
[363207930,1748623866259,-420.0,0.00022191,2]
[363207931,1748623866269,-420.0,0.00022191,2]
[363207932,1748623866278,-2192.84,0.00022191,2]
[363207933,1748623866287,-478.4,0.00022191,2]
[363207934,1748623866296,-420.0,0.00022191,2]
[363207935,1748623866306,-420.0,0.00022191,2]
[363207936,1748623866315,-559.77,0.00022191,2]
[363207937,1748623866323,-941.66,0.00022191,2]
[363207938,1748623866333,-420.0,0.00022191,2]
[363207939,1748623866342,-426.83486572,0.00022191,2]
[363207940,1748623866351,-420.0,0.00022191,2]
[363207941,1748623866360,-420.0,0.00022191,2]
[363207942,1748623866369,-420.0,0.00022191,2]
[363207943,1748623866377,-629.32,0.00022191,2]
[363207944,1748623866386,-420.0,0.00022191,2]
[363207945,1748623866396,-655.94,0.00022191,2]
[363207946,1748623866405,-429.58889505,0.00022191,2]
[363207947,1748623866414,-646.24,0.00022191,2]
[363207948,1748623866423,-420.0,0.00022191,2]
[363207949,1748623866432,-420.0,0.00022191,2]
[363207950,1748623866445,-420.0,0.00022191,2]
[363207951,1748623866455,-1197.74,0.00022191,2]
[363207952,1748623866464,-420.0,0.00022191,2]
[363207953,1748623866474,-460.72,0.00022191,2]
[363207954,1748623866483,-420.0,0.00022191,2]
[363207955,1748623866493,-420.0,0.00022191,2]
[363207956,1748623866502,-548.7,0.00022191,2]
[363207957,1748623866512,-420.0,0.00022191,2]
[363207958,1748623866521,-611.88,0.00022191,2]
[363207959,1748623866531,-486.73684758,0.00022191,2]
[363207960,1748623866543,-420.0,0.00022191,2]
[363207961,1748623866552,-420.0,0.00022191,2]
[363207962,1748623866562,-420.0,0.00022191,2]
[363207963,1748623866572,-1153.56,0.00022191,2]
[363207964,1748623866582,-560.56913432,0.00022191,2]
[363207965,1748623866591,-426.02427588,0.00022191,2]
[363207966,1748623866601,-420.0,0.00022191,2]
[363207967,1748623866611,-612.61,0.00022191,2]
[363207968,1748623866621,-420.0,0.00022191,2]
[363207969,1748623866631,-227.52293491,0.00022191,2]
[363207970,1748623866640,-420.0,0.00022191,2]
[363207971,1748623866650,-420.0,0.00022191,2]
[363207972,1748623866660,-420.0,0.00022191,2]
[363207973,1748623866670,-420.0,0.00022191,2]
[363207974,1748623866680,-778.7,0.00022191,2]
[363207975,1748623866694,-1570.86,0.00022191,2]
[363207976,1748623866704,-420.0,0.00022191,2]
[363207977,1748623866713,-1239.43,0.00022191,2]
[363207978,1748623866723,-420.0,0.00022191,2]
[363207979,1748623866733,-420.0,0.00022191,2]
[363207980,1748623866742,-588.29,0.00022191,2]
[363207981,1748623866751,-765.42,0.00022191,2]
[363207982,1748623866760,-481.832275,0.00022191,2]
[363207983,1748623866769,-420.0,0.00022191,2]
[363207984,1748623866777,-428.21771995,0.00022191,2]
[363207985,1748623866786,-420.0,0.00022191,2]
[363207986,1748623866795,-600.84,0.00022191,2]
[363207987,1748623866804,-420.0,0.00022191,2]
[363207988,1748623866814,-1370.53,0.00022191,2]
[363207989,1748623866823,-561.7,0.00022191,2]
[363207990,1748623866832,-1341.64,0.00022191,2]
[363207991,1748623866842,-849.49,0.00022191,2]
[363207992,1748623866852,-420.0,0.00022191,2]
[363207993,1748623866861,-793.37,0.00022191,2]
[363207994,1748623866871,-561.65,0.00022191,2]
[363207995,1748623866880,-420.0,0.00022191,2]
[363207996,1748623866890,-420.0,0.00022191,2]
[363207997,1748623866899,-420.0,0.00022191,2]
[363207998,1748623866908,-420.0,0.00022191,2]
[363207999,1748623866918,-310.15014505,0.00022191,2]
[363208000,1748623866927,-420.0,0.00022191,2]
[363208001,1748623866939,-420.0,0.00022191,2]
[363208002,1748623866949,-420.0,0.00022191,2]
[363208003,1748623866959,-425.80975803,0.00022191,2]
[363208004,1748623866968,-420.0,0.00022191,2]
[363208005,1748623866977,-507.27,0.00022191,2]
[363208006,1748623866987,-420.0,0.00022191,2]
[363208007,1748623866996,-795.46,0.00022191,2]
[363208008,1748623867006,-420.0,0.00022191,2]
[363208009,1748623867015,-420.0,0.00022191,2]
[363208010,1748623867024,-420.0,0.00022191,2]
[363208011,1748623867033,-420.0,0.00022191,2]
[363208012,1748623867043,-420.0,0.00022191,2]
[363208013,1748623867052,-427.32244974,0.00022191,2]
[363208014,1748623867062,-420.0,0.00022191,2]
[363208015,1748623867071,-420.0,0.00022191,2]
[363208016,1748623867080,-420.0,0.00022191,2]
[363208017,1748623867089,-420.0,0.00022191,2]
[363208018,1748623867098,-420.0,0.00022191,2]
[363208019,1748623867107,-1299.18,0.00022191,2]
[363208020,1748623867116,-491.61,0.00022191,2]
[363208021,1748623867125,-423.03340066,0.00022191,2]
[363208022,1748623867134,-420.0,0.00022191,2]
[363208023,1748623867144,-420.0,0.00022191,2]
[363208024,1748623867153,-420.0,0.00022191,2]
[363208025,1748623867163,-424.24598421,0.00022191,2]
[363208026,1748623867172,-420.0,0.00022191,2]
[363208027,1748623867181,-420.0,0.00022191,2]
[363208028,1748623867194,-420.0,0.00022191,2]
[363208029,1748623867203,-420.0,0.00022191,2]
[363208030,1748623867213,-493.08579206,0.00022191,2]
[363208031,1748623867222,-420.0,0.00022191,2]
[363208032,1748623867231,-420.0,0.00022191,2]
[363208033,1748623867240,-487.44,0.00022191,2]
[363208034,1748623867250,-420.0,0.00022191,2]
[363208035,1748623867259,-420.0,0.00022191,2]
[363208036,1748623867268,-420.0,0.00022191,2]
[363208037,1748623867278,-654.18,0.00022191,2]
[363208038,1748623867288,-1053.13,0.00022191,2]
[363208039,1748623867298,-420.0,0.00022191,2]
[363208040,1748623867308,-1102.21,0.00022191,2]
[363208041,1748623867317,-422.57603956,0.00022191,2]
[363208042,1748623867327,-420.0,0.00022191,2]
[363208043,1748623867336,-420.0,0.00022191,2]
[363208044,1748623867346,-484.6,0.00022191,2]
[363208045,1748623867357,-1279.43,0.00022191,2]
[363208046,1748623867367,-599.02,0.00022191,2]
[363208047,1748623867379,-420.0,0.00022191,2]
[363208048,1748623867388,-422.91357896,0.00022191,2]
[363208049,1748623867397,-449.09,0.00022191,2]
[363208050,1748623867407,-367.54817576,0.00022191,2]
[363208051,1748623867416,-700.17,0.00022191,2]
[363208052,1748623867425,-420.0,0.00022191,2]
[363208053,1748623867434,-452.65,0.00022191,2]
[363208054,1748623867448,-849.67,0.00022191,2]
[363208055,1748623867457,-381.75,0.00022191,2]
[363208056,1748623867466,-420.0,0.00022191,2]
[363208057,1748623867475,-420.0,0.00022191,2]
[363208058,1748623867485,-420.0,0.00022191,2]
[363208059,1748623867495,-717.17,0.00022191,2]
[363208060,1748623867505,-420.0,0.00022191,2]
[363208061,1748623867514,-1092.63,0.00022191,2]
[363208062,1748623867524,-420.0,0.00022191,2]
[363208063,1748623867539,-495.36874229,0.00022191,2]
[363208064,1748623867548,-2339.29,0.00022191,2]
[363208065,1748623867558,-599.16,0.00022191,2]
[363208066,1748623867567,-160.0,0.00022191,2]
[363208067,1748623867579,-420.0,0.00022191,2]
[363208068,1748623867588,-420.0,0.00022191,2]
[363208069,1748623867598,-183.64362466,0.00022191,2]
[363208070,1748623867608,-697.45,0.00022191,2]
[363208071,1748623867618,-420.0,0.00022191,2]
[363208072,1748623867628,-420.0,0.00022191,2]
[363208073,1748623867637,-477.21,0.00022191,2]
[363208074,1748623867647,-420.0,0.00022191,2]
[363208075,1748623867656,-950.74,0.00022191,2]
[363208076,1748623867665,-420.0,0.00022191,2]
[363208077,1748623867679,-420.0,0.00022191,2]
[363208078,1748623867690,-420.0,0.00022191,2]
[363208079,1748623867699,-654.96,0.00022191,2]
[363208080,1748623867709,-420.0,0.00022191,2]
[363208081,1748623867718,-420.0,0.00022191,2]
[363208082,1748623867727,-420.0,0.00022191,2]
[363208083,1748623867736,-420.0,0.00022191,2]
[363208084,1748623867746,-160.0,0.00022191,2]
[363208085,1748623867755,-420.0,0.00022191,2]
[363208086,1748623867765,-626.07,0.00022191,2]
[363208087,1748623867774,-1244.29,0.00022191,2]
[363208088,1748623867785,-420.0,0.00022191,2]
[363208089,1748623867794,-543.34,0.00022191,2]
[363208090,1748623867803,-523.41,0.00022191,2]
[363208091,1748623867812,-420.0,0.00022191,2]
[363208092,1748623867821,-506.91,0.00022191,2]
[363208093,1748623867832,-420.0,0.00022191,2]
[363208094,1748623867842,-506.95,0.00022191,2]
[363208095,1748623867851,-534.08597471,0.00022191,2]
[363208096,1748623867860,-420.0,0.00022191,2]
[363208097,1748623867870,-595.13,0.00022191,2]
[363208098,1748623867879,-420.0,0.00022191,2]
[363208099,1748623867889,-910.81,0.00022191,2]
[363208100,1748623867898,-529.44575093,0.00022191,2]
[363208101,1748623867907,-1403.72,0.00022191,2]
[363208102,1748623867916,-642.37,0.00022191,2]
[363208103,1748623867925,-783.16,0.00022191,2]
[363208104,1748623867935,-421.95374729,0.00022191,2]
[363208105,1748623867948,-167.03626169,0.00022191,2]
[363208106,1748623867957,-422.28357498,0.00022191,2]
[363208107,1748623867967,-579.96,0.00022191,2]
[363208108,1748623867976,-420.0,0.00022191,2]
[363208109,1748623867985,-420.0,0.00022191,2]
[363208110,1748623867995,-420.0,0.00022191,2]
[363208111,1748623868004,-1405.5,0.00022191,2]
[363208112,1748623868014,-420.0,0.00022191,2]
[363208113,1748623868023,-420.0,0.00022191,2]
[363208114,1748623868032,-420.0,0.00022191,2]
[363208115,1748623868041,-420.0,0.00022191,2]
[363208116,1748623868051,-420.0,0.00022191,2]
[363208117,1748623868060,-420.0,0.00022191,2]
[363208118,1748623868069,-505.88206369,0.00022191,2]
[363208119,1748623868079,-420.0,0.00022191,2]
[363208120,1748623868088,-420.0,0.00022191,2]
[363208121,1748623868097,-420.0,0.00022191,2]
[363208122,1748623868107,-1121.8,0.00022191,2]
[363208123,1748623868116,-441.19,0.00022191,2]
[363208124,1748623868126,-450.49,0.00022191,2]
[363208125,1748623868136,-902.51,0.00022191,2]
[363208126,1748623868145,-420.0,0.00022191,2]
[363208127,1748623868155,-420.0,0.00022191,2]
[363208128,1748623868164,-420.0,0.00022191,2]